bitfinex/quotes_ETHUSD_20220123
["timestamp","ask_amount","ask_price","bid_price","bid_amount"]
[1642951582854,0.20534,2436.5,2435.5,3.49301033]
[1642951583053,1.72730773,2436.5,2435.5,3.49301033]
[1642951584655,1.23090914,2436.2,2435.5,3.49301033]
[1642951584856,0.95760027,2436.2,2435.5,3.49301033]
[1642951585417,0.20534,2436.3,2435.5,3.49301033]
[1642951585607,1.54386993,2436.1,2435.5,3.49301033]
[1642951586108,1.54386993,2436.1,2435.4,0.26859999]
[1642951586109,4.5286287,2436.0,2435.4,0.26859999]
[1642951586308,0.20534,2435.9,2435.4,0.26859999]
[1642951593608,0.20534,2435.9,2435.4,0.21859999]
[1642951594304,4.88920527,2436.4,2435.4,0.21859999]
[1642951594305,0.20534,2436.4,2435.4,0.21859999]
[1642951594504,0.20534,2436.4,2435.5,0.06084041]
[1642951594704,0.20534,2436.4,2435.4,0.21859999]
[1642951597055,1.42222473,2436.3,2435.4,0.21859999]
[1642951597257,0.20534,2436.2,2435.4,0.21859999]
[1642951597657,1.592,2436.1,2435.4,0.21859999]
[1642951598056,0.08685181,2436.0,2435.4,0.21859999]
[1642951598255,1.592,2436.1,2435.4,0.21859999]
[1642951598256,1.47523419,2435.5,2435.4,0.21859999]
[1642951599456,0.20534,2435.7,2435.4,0.21859999]
[1642951600501,0.592,2435.6,2435.4,0.21859999]
[1642951600900,4.45534,2435.5,2434.8,0.28652391]
[1642951601100,4.45534,2435.5,2434.1,10.80158091]
[1642951601101,5.04734,2435.5,2434.1,10.80158091]
[1642951601309,5.34734,2435.5,2434.1,10.80158091]
[1642951601513,1.48709732,2435.2,2434.2,2.25038644]
[1642951601705,6.34734,2435.5,2434.2,2.25038644]
[1642951602309,6.34734,2435.5,2434.9,0.28652391]
[1642951603005,7.7396226,2435.5,2434.9,0.28652391]
[1642951603207,6.4396226,2435.5,2434.9,0.28652391]
[1642951603605,6.4396226,2435.5,2434.1,10.8002]
[1642951604011,1.0,2435.4,2434.2,2.24970424]
[1642951604247,1.3017364,2435.1,2434.2,2.24970424]
[1642951604447,0.20534,2435.0,2434.2,2.24970424]
[1642951604649,0.592,2434.9,2434.2,2.24970424]
[1642951604850,5.19883731,2434.8,2434.2,2.24970424]
[1642951605051,0.20534,2434.7,2434.2,2.24970424]
[1642951605251,1.20534,2434.7,2433.7,5.36010424]
[1642951605453,1.23107713,2434.4,2433.7,5.36010424]
[1642951605652,1.23107713,2434.4,2433.7,2.24970424]
[1642951605855,1.20534,2434.7,2434.2,0.28652391]
[1642951606458,1.20534,2434.7,2433.3,6.8386]
[1642951606661,1.20534,2434.7,2433.4,3.49504662]
[1642951606857,1.39006201,2434.5,2433.4,3.49504662]
[1642951607557,1.39006201,2434.5,2433.4,3.79504662]
[1642951607760,1.39006201,2434.5,2433.5,2.24665977]
[1642951608005,0.79734,2434.7,2434.2,0.28652391]
[1642951608208,0.592,2434.7,2434.2,0.28652391]
[1642951608409,0.20534,2434.9,2434.2,0.28652391]
[1642951608609,0.20534,2434.9,2434.2,0.23652391]
[1642951609212,1.30656154,2434.9,2434.2,0.23652391]
[1642951609409,1.30656154,2434.9,2433.6,1.01216546]
[1642951609710,4.43520907,2434.8,2433.6,0.3]
[1642951609909,4.43520907,2434.8,2433.4,1.3]
[1642951610109,0.20534,2434.7,2433.3,9.78433993]
[1642951610312,0.20534,2434.7,2433.3,10.08433993]
[1642951610510,0.20534,2434.7,2433.5,2.245666]
[1642951610712,1.20534,2434.7,2433.5,2.245666]
[1642951611111,4.37876653,2434.6,2433.5,2.245666]
[1642951611313,1.38611485,2434.3,2433.8,0.23652391]
[1642951611759,0.20534,2434.5,2433.8,0.23652391]
[1642951612159,0.20534,2434.7,2433.8,0.23652391]
[1642951612358,0.20535,2434.8,2433.8,0.23652391]
[1642951612956,1.1875298,2434.7,2433.8,0.23652391]
[1642951613157,2.51019004,2434.7,2433.8,0.23652391]
[1642951613557,2.51019004,2434.7,2433.6,0.01278098]
[1642951614164,1.47007986,2434.2,2433.4,1.0]
[1642951614366,1.47007986,2434.2,2433.4,1.3]
[1642951614561,1.47007986,2434.2,2433.7,0.2075356]
[1642951614963,1.47007986,2434.2,2433.4,1.6]
[1642951615164,0.79735,2434.6,2433.4,1.6]
[1642951616200,1.09961689,2434.5,2433.4,1.6]
[1642951616801,1.09961689,2434.5,2434.1,0.23652391]
[1642951617201,0.79735,2434.6,2434.1,0.23652391]
[1642951617602,0.79735,2434.6,2433.4,1.6]
[1642951618304,0.20535,2434.8,2433.6,0.01219491]
[1642951619371,0.20535,2434.8,2434.4,0.22013392]
[1642951619771,0.20535,2435.0,2434.4,0.22013392]
[1642951619972,3.9491,2435.2,2434.4,0.22013392]
[1642951620171,0.13819997,2435.4,2434.4,0.22013392]
[1642951621174,1.12509538,2435.2,2434.4,0.22013392]
[1642951625110,0.13819997,2435.4,2434.4,0.22013392]
[1642951626010,10.60048342,2435.7,2434.4,0.22013392]
[1642951626011,10.80583342,2435.7,2434.4,0.22013392]
[1642951626210,0.21793342,2435.7,2434.4,0.22013392]
[1642951626414,0.13819997,2435.8,2434.5,0.03229142]
[1642951626653,0.13819997,2435.8,2434.6,24.352]
[1642951626856,0.20535,2436.3,2434.8,23.82797829]
[1642951627057,0.20535,2436.3,2435.0,0.03532713]
[1642951627258,0.20535,2436.3,2434.9,30.89046346]
[1642951627454,0.20535,2436.3,2434.9,29.89046346]
[1642951627657,0.20535,2436.3,2435.0,4.0471]
[1642951627854,0.20535,2436.3,2435.1,4.35582825]
[1642951628055,0.20535,2436.3,2435.0,8.73162303]
[1642951628255,0.20535,2436.3,2435.0,4.3471]
[1642951629157,0.20535,2436.3,2435.0,8.8001074]
[1642951629357,0.20535,2436.3,2435.0,8.78000525]
[1642951629764,0.20535,2436.3,2435.0,4.3471]
[1642951630409,0.20535,2436.3,2435.0,8.7908927]
[1642951632005,1.2400021,2436.2,2435.0,4.3471]
[1642951632606,1.2400021,2436.2,2435.0,3.0471]
[1642951632805,1.24760538,2435.8,2435.0,3.3471]
[1642951634852,1.24760538,2435.8,2435.0,3.34577833]
[1642951637559,1.20535,2436.3,2435.0,3.34577833]
[1642951638002,0.20535,2436.3,2435.2,0.03122467]
[1642951638201,0.20535,2436.3,2435.1,1.3]
[1642951638600,1.14852028,2436.1,2435.1,1.3]
[1642951639201,1.26339419,2436.0,2435.1,1.3]
[1642951639801,1.26339419,2436.0,2435.1,0.3]
[1642951640003,1.14852028,2436.1,2435.0,3.64577833]
[1642951640706,0.20535,2436.3,2435.0,3.64577833]
[1642951641307,0.20535,2436.3,2435.0,8.13423957]
[1642951641508,0.01219565,2436.4,2435.1,1.0]
[1642951641755,0.01219565,2436.4,2435.2,4.55470272]
[1642951641954,0.01219565,2436.4,2435.2,0.6]
[1642951642256,0.01219565,2436.4,2435.3,0.3]
[1642951642454,0.01219565,2436.4,2435.1,25.36]
[1642951642653,0.01219565,2436.4,2435.1,1.6]
[1642951643155,0.27639994,2436.5,2435.2,23.95999]
[1642951643356,0.27639994,2436.5,2435.3,4.90756112]
[1642951643555,0.27639994,2436.5,2435.3,7.09956112]
[1642951643755,0.27639994,2436.5,2435.3,30.85956112]
[1642951644157,0.27639994,2436.5,2435.3,25.952]
[1642951644359,0.27639994,2436.5,2435.3,2.192]
[1642951644557,0.27639994,2436.5,2435.3,1.192]
[1642951644960,0.27639994,2436.5,2435.4,4.34511595]
[1642951645158,0.27639994,2436.5,2435.5,1.0]
[1642951645413,0.27639994,2436.5,2435.4,4.33513332]
[1642951645597,0.27639994,2436.5,2435.3,6.0272]
[1642951645798,0.04,2436.8,2435.4,4.8640938]
[1642951645999,0.04,2436.8,2435.5,24.352]
[1642951646199,0.04,2436.8,2435.7,23.76]
[1642951646400,0.04,2436.8,2435.8,29.8760158]
[1642951646600,0.04,2436.8,2435.9,0.592]
[1642951646804,0.04,2436.8,2436.1,23.76]
[1642951647008,0.04,2436.8,2436.2,0.79199]
[1642951647305,0.04,2436.8,2436.2,5.22099]
[1642951647504,0.04,2436.8,2436.2,5.52099]
[1642951648903,0.03842877,2436.8,2436.2,5.52099]
[1642951650349,0.03842877,2436.8,2436.2,5.321]
[1642951651455,0.03842877,2436.8,2436.3,23.76]
[1642951651657,0.03842877,2436.8,2436.4,1.592]
[1642951651856,0.03842877,2436.8,2436.5,0.49999]
[1642951652154,0.03842877,2436.8,2436.7,6.29999]
[1642951652554,0.03842877,2436.8,2436.7,7.89999]
[1642951654503,0.04,2437.1,2436.9,23.76]
[1642951654901,0.04,2437.1,2437.0,5.45]
[1642951655103,0.04,2437.1,2437.0,5.75]
[1642951655301,0.0001,2437.1,2437.0,29.51]
[1642951655502,0.0001,2437.1,2437.0,5.75]
[1642951655707,0.0001,2437.1,2437.0,29.70999]
[1642951656656,0.0001,2437.1,2437.0,0.3]
[1642951656863,0.0001,2437.1,2436.8,0.164]
[1642951657459,0.0001,2437.1,2436.6,0.19999]
[1642951661401,0.0001,2437.1,2436.5,0.592]
[1642951662206,0.02875926,2437.3,2436.5,0.592]
[1642951662510,0.02875926,2437.3,2436.6,6.55]
[1642951662907,0.02875926,2437.3,2436.7,1.0]
[1642951664548,0.02875926,2437.3,2436.8,0.03925118]
[1642951666449,0.02875926,2437.3,2436.7,1.19999]
[1642951675399,0.02875926,2437.3,2436.4,3.6575]
[1642951675601,0.01212859,2437.1,2436.0,3.9373]
[1642951675800,0.01212859,2437.1,2435.9,9.08882573]
[1642951675801,0.01212859,2437.1,2435.9,3.6515]
[1642951676200,1.51309706,2436.9,2435.9,3.6515]
[1642951676408,1.51309706,2436.9,2435.9,7.6288]
[1642951678105,1.51309706,2436.9,2436.0,1.0]
[1642951678706,0.01212859,2437.1,2436.0,1.0]
[1642951679148,0.01212859,2437.1,2436.0,1.19999]
[1642951680052,1.47396356,2437.3,2436.0,1.19999]
[1642951680251,0.02875926,2437.3,2436.0,1.19999]
[1642951680753,0.02875926,2437.3,2436.1,0.756]
[1642951680953,0.02875926,2437.3,2437.2,1.5]
[1642951682901,0.02875926,2437.3,2437.2,1.79864163]
[1642951683703,0.02875926,2437.3,2437.2,1.49864163]
[1642951692108,0.02875926,2437.3,2437.2,1.79864163]
[1642951693108,0.02875926,2437.3,2437.2,1.49864163]
[1642951694557,5.21523587,2437.3,2437.2,1.49864163]
[1642951694753,5.21523587,2437.3,2437.1,1.5]
[1642951696056,5.21523587,2437.3,2436.7,1.5]
[1642951701117,5.42058587,2437.3,2436.7,1.5]
[1642951701317,3.98410926,2437.3,2436.7,1.5]
[1642951701761,3.98410926,2437.3,2437.0,1.5]
[1642951703761,3.98410926,2437.3,2436.8,1.5]
[1642951704863,3.98410926,2437.3,2436.9,1.5]
[1642951705262,3.98410926,2437.3,2436.9,1.49873111]
[1642951706305,0.23410926,2437.3,2436.9,1.49873111]
[1642951707911,0.23410926,2437.3,2436.8,1.5]
[1642951708910,0.23410926,2437.3,2436.9,1.5]
[1642951709951,0.02875926,2437.3,2437.0,1.5]
[1642951710758,0.02875926,2437.3,2437.2,1.5]
[1642951711160,0.02875926,2437.3,2437.2,3.5]
[1642951713614,0.02875926,2437.3,2437.2,4.8]
[1642951713819,5.926e-05,2437.3,2437.2,30.51]
[1642951714016,0.04,2437.7,2437.2,31.70999]
[1642951714218,0.04,2437.7,2437.3,0.07496352]
[1642951714417,0.04,2437.7,2437.4,0.79199]
[1642951714616,0.0001,2437.7,2437.6,7.09999]
[1642951714820,0.0001,2437.7,2437.6,8.89999]
[1642951715018,0.0001,2437.7,2437.6,10.79199]
[1642951715819,0.04,2437.8,2437.7,4.9]
[1642951715820,0.0001,2437.8,2437.7,4.9]
[1642951716022,0.04,2438.2,2437.8,7.3]
[1642951716220,0.0001,2438.2,2437.9,4.4666048]
[1642951716420,0.0001,2438.2,2437.8,1.3]
[1642951716652,0.0001,2438.2,2437.9,0.3]
[1642951716860,0.0001,2438.2,2438.1,1.5]
[1642951717057,0.0001,2438.2,2438.1,2.1]
[1642951719159,0.0001,2438.2,2438.1,4.1]
[1642951719561,0.0001,2438.2,2438.1,5.1]
[1642951723414,0.0001,2438.2,2438.1,4.1]
[1642951723612,0.0001,2438.2,2438.1,5.1]
[1642951723813,0.0001,2438.2,2438.1,3.5]
[1642951728003,3.3001,2438.2,2438.1,3.5]
[1642951728411,0.0001,2438.2,2438.1,3.5]
[1642951729004,4.9001,2438.2,2438.1,3.5]
[1642951729812,5.10545,2438.2,2438.1,2.0]
[1642951730212,5.10545,2438.2,2437.6,1.5]
[1642951730813,5.10545,2438.2,2437.9,1.5]
[1642951731120,1.21527933,2438.1,2437.9,1.5]
[1642951731960,6.96527933,2438.1,2438.0,1.5]
[1642951732761,6.96527933,2438.1,2437.9,3.5]
[1642951733164,0.0001,2438.2,2437.9,1.5]
[1642951733868,0.0001,2438.2,2438.0,1.5]
[1642951734063,0.0301,2438.4,2438.0,3.5]
[1642951734864,0.0301,2438.4,2438.3,1.5]
[1642951735266,0.0301,2438.4,2438.3,3.5]
[1642951736606,0.0301,2438.4,2438.3,3.8]
[1642951736809,0.0301,2438.4,2438.3,4.1]
[1642951737009,0.0301,2438.4,2438.3,5.1]
[1642951737409,0.0301,2438.4,2438.3,3.5]
[1642951738308,0.0301,2438.4,2438.3,4.1]
[1642951738509,0.0301,2438.4,2438.3,3.5]
[1642951739356,0.0301,2438.4,2438.3,3.8]
[1642951739555,0.0301,2438.4,2438.3,4.1]
[1642951741361,0.0301,2438.4,2438.3,5.1]
[1642951747859,0.0301,2438.4,2438.3,5.29999]
[1642951748660,0.0301,2438.4,2438.3,5.89199]
[1642951748859,0.0301,2438.4,2438.3,8.44199]
[1642951749159,0.0301,2438.4,2438.3,5.692]
[1642951749363,0.0301,2438.4,2438.3,5.89199]
[1642951749559,0.04,2439.3,2438.4,5.5]
[1642951749759,2.89,2439.3,2439.2,1.5]
[1642951750160,2.89,2439.3,2439.2,3.5]
[1642951750804,6.59,2439.3,2439.2,3.5]
[1642951751604,2.89,2439.3,2439.2,3.5]
[1642951753814,7.41943134,2439.3,2438.5,3.6756]
[1642951754020,7.41943134,2439.3,2438.0,1.2115]
[1642951754021,0.0127216,2438.6,2438.0,1.2115]
[1642951755067,1.53280398,2438.8,2437.8,6.9786]
[1642951755068,1.53280398,2438.8,2438.1,4.3504]
[1642951755269,1.53280398,2438.8,2438.1,0.7638]
[1642951755567,6.29535,2439.3,2438.1,0.7638]
[1642951755769,6.29535,2439.3,2438.1,0.3]
[1642951755968,6.09,2439.3,2437.9,2.5084]
[1642951756568,1.33485293,2439.2,2437.9,2.5084]
[1642951759012,6.29535,2439.3,2437.9,2.5084]
[1642951760410,1.50462039,2439.1,2437.9,2.5084]
[1642951763270,1.50462039,2439.1,2437.9,6.16861996]
[1642951763570,3.09535,2439.3,2438.0,23.95999]
[1642951763571,7.48,2439.0,2438.0,23.95999]
[1642951763771,7.48,2439.0,2438.1,0.3]
[1642951763969,7.48,2439.0,2438.1,1.3]
[1642951764170,7.48,2439.0,2438.1,0.6]
[1642951765618,7.48,2439.0,2438.1,4.79870162]
[1642951766018,7.48,2439.0,2438.2,24.95999]
[1642951766824,0.04,2439.3,2438.3,4.20501126]
[1642951767026,0.04,2439.3,2438.4,0.19999]
[1642951767223,0.04,2439.3,2438.5,0.592]
[1642951767422,0.04,2439.3,2438.6,0.19999]
[1642951767624,0.04,2439.3,2438.6,0.79199]
[1642951769023,0.04,2439.3,2438.6,1.79199]
[1642951770463,0.05,2439.0,2438.6,1.79199]
[1642951772666,0.05,2439.0,2438.5,3.0966]
[1642951774109,0.05,2439.0,2438.6,1.0]
[1642951776764,1.40494267,2439.0,2438.6,1.0]
[1642951777167,1.40494267,2439.0,2438.5,0.3]
[1642951777568,1.40494267,2439.0,2438.4,1.0]
[1642951777767,1.40494267,2439.0,2438.1,3.2478]
[1642951778769,1.40494267,2439.0,2438.1,3.24680139]
[1642951779168,1.40494267,2439.0,2438.2,1.0]
[1642951784360,0.05,2439.0,2438.2,1.0]
[1642951788308,1.22230746,2438.8,2438.2,1.0]
[1642951788509,0.43138417,2438.8,2438.2,1.0]
[1642951789613,0.43138417,2438.9,2438.2,1.0]
[1642951790407,0.79615033,2438.9,2438.2,1.0]
[1642951790810,2.09254746,2438.9,2438.2,1.0]
[1642951792468,0.79615033,2438.9,2438.2,1.0]
[1642951793364,0.79615033,2438.9,2438.1,3.24680139]
[1642951793569,3.74707177,2438.8,2437.7,0.164]
[1642951793775,1.14180768,2438.7,2437.7,0.164]
[1642951793968,1.10223667,2438.2,2437.7,0.164]
[1642951794369,1.27728332,2438.1,2437.7,0.164]
[1642951794572,2.427854,2438.1,2437.7,0.164]
[1642951794973,2.51470581,2438.1,2437.7,0.164]
[1642951795409,2.427854,2438.1,2437.7,0.164]
[1642951796009,3.98072778,2438.1,2437.0,3.3039]
[1642951796208,3.98072778,2438.1,2437.1,3.4902071]
[1642951796413,3.98072778,2438.1,2437.1,3.7902071]
[1642951796611,2.427854,2438.1,2437.2,1.0]
[1642951797013,2.427854,2438.1,2437.1,1.0]
[1642951797414,1.4827841,2437.7,2437.1,1.0]
[1642951797616,2.57459088,2437.7,2437.1,1.0]
[1642951799162,2.98649489,2437.3,2436.9,3.7184]
[1642951799368,2.98649489,2437.3,2436.1,6.68725273]
[1642951799369,0.20535,2437.2,2436.1,6.68725273]
[1642951799566,1.31218095,2437.2,2436.1,3.1358]
[1642951799762,1.31218095,2437.2,2436.2,2.32830961]
[1642951799962,1.31218095,2437.2,2436.2,5.81916943]
[1642951799963,1.10683095,2437.1,2436.2,5.81916943]
[1642951800164,1.38082608,2436.5,2436.2,5.81916943]
[1642951800363,2.48765703,2436.5,2436.2,5.81916943]
[1642951800976,1.31218095,2436.5,2436.2,6.943e-05]
[1642951801173,0.592,2436.4,2436.2,6.943e-05]
[1642951801364,1.78060148,2436.4,2436.2,6.943e-05]
[1642951801769,9.20627229,2436.3,2436.2,6.943e-05]
[1642951801969,9.20627229,2436.3,2434.5,1.46588429]
[1642951801970,1.31236391,2435.5,2434.5,0.01285024]
[1642951802168,2.50096539,2435.5,2434.5,0.01285024]
[1642951802672,1.04794184,2435.4,2434.4,0.22013392]
[1642951802931,1.25329184,2435.4,2434.4,0.22013392]
[1642951803118,1.04794184,2435.3,2434.4,0.22013392]
[1642951803720,0.13819997,2435.7,2434.4,0.22013392]
[1642951803721,1.04794184,2435.2,2434.4,0.22013392]
[1642951803920,1.04794184,2435.1,2434.5,0.01287151]
[1642951804520,0.13819997,2435.7,2435.1,3.14382552]
[1642951804724,0.37275674,2436.0,2435.1,27.10381552]
[1642951804923,4.25221996,2436.6,2435.2,1.0]
[1642951804924,0.37275674,2436.5,2435.2,1.0]
[1642951805320,0.57810674,2436.5,2435.2,1.0]
[1642951805521,0.37275674,2436.4,2435.2,1.0]
[1642951805722,1.86085815,2436.4,2435.2,1.0]
[1642951805922,1.86085815,2436.4,2435.1,3.14382552]
[1642951805923,2.39332484,2435.6,2435.1,3.14382552]
[1642951806123,0.37275674,2435.5,2435.1,3.14382552]
[1642951806327,1.16736275,2435.6,2435.1,3.14382552]
[1642951807271,1.38367188,2435.4,2435.1,3.14382552]
[1642951807471,4.7803555,2435.5,2435.1,3.14382552]
[1642951807472,5.40535,2435.2,2435.1,3.14382552]
[1642951807870,5.7,2435.1,2433.9,3.66118091]
[1642951808070,4.58566863,2435.1,2433.9,3.66118091]
[1642951808369,1.51837923,2434.6,2433.9,3.6598]
[1642951808569,1.51837923,2434.6,2434.0,1.91270781]
[1642951808769,1.51837923,2434.6,2434.1,0.20927672]
[1642951809369,1.51837923,2434.6,2434.4,0.33966407]
[1642951809573,0.20535,2435.0,2434.4,0.67932814]
[1642951811522,1.4412209,2434.9,2434.4,0.67932814]
[1642951811732,0.01221964,2434.6,2434.4,0.67932814]
[1642951811922,7.15535,2434.5,2434.4,0.67932814]
[1642951812125,8.15535,2434.5,2434.4,0.67932814]
[1642951812723,1.20535,2434.5,2434.4,0.67932814]
[1642951812924,0.20535,2434.5,2434.4,0.67932814]
[1642951813125,0.20535,2435.2,2434.4,0.67932814]
[1642951813524,1.43589744,2435.5,2434.4,0.67932814]
[1642951813725,1.43589744,2435.5,2434.4,0.97932814]
[1642951813923,1.43589744,2435.5,2434.4,1.27932814]
[1642951814173,1.09814502,2435.2,2434.4,0.67932814]
[1642951814574,1.30349502,2435.2,2434.0,3.8595]
[1642951814773,1.30349502,2435.2,2435.0,0.33966407]
[1642951815379,7.8,2435.1,2434.6,0.33966407]
[1642951815582,8.01765496,2435.1,2434.6,0.33966407]
[1642951815778,3.50955678,2435.0,2434.6,0.33966407]
[1642951815976,8.01765496,2435.1,2434.6,0.33966407]
[1642951815977,0.20535,2434.9,2434.6,0.33966407]
[1642951816180,3.60535,2434.7,2434.6,0.33966407]
[1642951816377,3.60535,2434.7,2434.6,0.18816407]
[1642951816580,1.4230946,2434.5,2433.6,0.23516631]
[1642951816784,0.20535,2434.4,2433.4,0.00150102]
[1642951816984,0.20535,2434.4,2432.9,3.6764073]
[1642951817382,0.20535,2434.4,2432.8,23.77225945]
[1642951817580,1.30771364,2434.0,2432.9,5.24276915]
[1642951817785,0.34345,2434.6,2433.0,0.19999]
[1642951818019,0.34345,2434.6,2434.0,3.92314091]
[1642951818219,0.34345,2434.6,2434.2,0.23652391]
[1642951818420,0.34345,2434.6,2434.0,3.92314091]
[1642951818619,1.34345,2434.6,2434.0,3.92314091]
[1642951818820,1.24159724,2434.1,2434.0,3.92314091]
[1642951819119,1.44694724,2434.1,2434.0,3.92314091]
[1642951819523,0.20535,2434.5,2434.0,4.15966482]
[1642951820822,1.0,2434.9,2434.0,4.15966482]
[1642951820823,0.20535,2434.8,2434.0,4.15966482]
[1642951821776,1.1288892,2434.2,2434.0,4.15966482]
[1642951822374,0.20535,2434.1,2434.0,3.92314091]
[1642951823576,6.30535,2434.1,2434.0,3.7228328]
[1642951823874,4.65,2434.0,2432.9,0.00150102]
[1642951824077,5.65,2434.0,2432.9,3.49556956]
[1642951824273,5.65,2434.0,2433.0,3.49556956]
[1642951824474,5.65,2434.0,2433.7,0.23652391]
[1642951824780,0.20535,2433.8,2433.7,0.23652391]
[1642951824977,0.20535,2434.2,2433.8,0.61604999]
[1642951825179,3.2218,2434.9,2433.8,0.61604999]
[1642951825180,2.58645,2434.7,2433.8,0.61604999]
[1642951825435,0.20535,2434.7,2433.8,0.61604999]
[1642951826127,1.24267374,2434.4,2433.8,0.61604999]
[1642951826327,0.20535,2434.3,2433.8,0.61604999]
[1642951827527,1.20535,2434.3,2433.8,0.61604999]
[1642951827728,0.80535,2434.3,2433.8,0.61604999]
[1642951827928,13.53475134,2434.2,2432.8,1.45315416]
[1642951828133,13.53475134,2434.2,2432.9,3.49560353]
[1642951828134,1.20535,2434.1,2432.9,3.49560353]
[1642951828327,0.592,2434.0,2433.0,3.49560353]
[1642951828528,0.67885181,2434.0,2432.7,3.49560353]
[1642951828731,0.67885181,2434.0,2432.8,3.49560353]
[1642951828732,5.96573404,2433.9,2432.8,3.49560353]
[1642951828928,5.96573404,2433.9,2433.4,0.23652391]
[1642951828929,6.55773404,2433.9,2433.4,0.23652391]
[1642951829168,1.50254392,2433.6,2432.6,7.0518]
[1642951829370,4.77727184,2433.5,2432.7,3.49592421]
[1642951829570,1.70789392,2433.6,2432.8,3.49592421]
[1642951829771,4.39979861,2433.5,2432.8,3.49592421]
[1642951829977,4.39979861,2433.5,2432.3,4.94757735]
[1642951830177,1.29220181,2433.4,2432.3,3.49592421]
[1642951830372,1.29220181,2433.4,2432.4,3.49592421]
[1642951830373,5.23000814,2433.3,2432.4,3.49592421]
[1642951830571,1.79735,2433.2,2432.8,0.2083241]
[1642951831072,7.15,2433.1,2432.1,1.45165314]
[1642951831271,1.79735,2433.2,2432.2,3.49684656]
[1642951831272,5.83492249,2433.0,2432.2,3.49684656]
[1642951831472,5.83492249,2433.0,2432.3,3.49684656]
[1642951831473,6.83492249,2433.0,2432.3,3.49684656]
[1642951831670,6.83492249,2433.0,2432.4,3.49684656]
[1642951831671,1.0,2432.9,2432.4,3.49684656]
[1642951831873,1.09735,2433.0,2432.9,1.87965576]
[1642951832273,0.79735,2433.0,2432.9,1.87965576]
[1642951832477,7.44735,2433.0,2432.9,5.576e-05]
[1642951832676,8.13420181,2433.0,2432.9,5.576e-05]
[1642951832955,7.8,2432.9,2431.9,0.02]
[1642951833145,6.40182917,2432.8,2432.0,3.4975642]
[1642951833340,1.67885181,2432.8,2432.0,3.4975642]
[1642951833540,1.27885181,2432.8,2432.0,3.4975642]
[1642951833740,0.20535,2432.7,2431.9,0.02]
[1642951833942,1.15053212,2432.5,2431.9,0.02]
[1642951834142,0.592,2432.4,2431.9,0.02]
[1642951834742,0.20535,2432.3,2431.9,0.02]
[1642951839588,0.20535,2432.3,2431.5,0.02]
[1642951839589,6.7,2432.1,2431.5,0.02]
[1642951839784,0.592,2432.0,2431.5,0.02]
[1642951839984,1.592,2432.0,2431.6,0.04149492]
[1642951840185,0.592,2432.0,2431.6,0.04149492]
[1642951840441,0.20535,2431.9,2431.7,3.49829557]
[1642951840623,0.60745126,2432.5,2432.0,0.41069999]
[1642951841222,1.2138,2432.8,2432.0,0.41069999]
[1642951841423,0.49029893,2432.9,2432.1,3.49756154]
[1642951841626,0.27639994,2432.9,2432.1,3.49756154]
[1642951842028,0.27639994,2432.9,2432.0,0.41069999]
[1642951842225,0.27639994,2432.9,2432.1,3.49779865]
[1642951842427,0.13819997,2432.9,2432.1,3.49779865]
[1642951842627,0.592,2433.0,2432.1,3.49779865]
[1642951842828,0.592,2433.0,2432.0,0.41069999]
[1642951843631,2.192,2433.0,2432.0,0.41069999]
[1642951843829,1.192,2433.0,2432.0,0.41069999]
[1642951844030,2.192,2433.0,2432.0,0.41069999]
[1642951844666,2.38172767,2433.1,2433.0,1.53939693]
[1642951844869,2.38172767,2433.1,2432.0,0.41069999]
[1642951844870,7.8,2433.0,2432.0,0.41069999]
[1642951845068,0.592,2432.9,2432.0,0.41069999]
[1642951845267,4.59997206,2432.8,2432.0,0.41069999]
[1642951845469,0.592,2432.7,2432.0,0.41069999]
[1642951845671,0.592,2432.6,2432.0,0.41069999]
[1642951845868,0.592,2432.5,2432.0,0.41069999]
[1642951846469,0.592,2432.8,2432.1,3.49823863]
[1642951847276,0.592,2432.8,2432.1,3.79823863]
[1642951847473,1.26979997,2433.2,2432.2,3.49823863]
[1642951847474,1.86179997,2433.2,2432.2,3.49823863]
[1642951847673,0.13819997,2433.2,2432.2,3.49823863]
[1642951847927,0.13819997,2433.2,2432.3,3.49823863]
[1642951848115,0.13819997,2433.2,2432.4,3.49823863]
[1642951848327,0.592,2433.5,2432.5,3.49823863]
[1642951848328,0.10319363,2433.4,2432.5,3.49823863]
[1642951848519,0.10319363,2433.4,2432.6,3.49823863]
[1642951848919,0.10319363,2433.4,2432.2,3.9582]
[1642951849118,0.10319363,2433.4,2432.3,3.49746736]
[1642951849921,0.2413936,2433.7,2432.3,7.82709622]
[1642951850122,0.2413936,2433.7,2432.4,4.49746736]
[1642951850319,0.2413936,2433.7,2432.5,3.49746736]
[1642951850522,0.2413936,2433.7,2432.5,0.3]
[1642951850720,0.10319363,2433.7,2432.6,4.49746736]
[1642951850931,0.10319363,2433.7,2432.7,8.62096319]
[1642951851121,0.10319363,2433.7,2432.7,9.62096319]
[1642951851320,0.10319363,2433.7,2432.8,3.69745736]
[1642951851523,7.49731175,2434.0,2432.9,27.25746736]
[1642951851776,7.49731175,2434.0,2433.0,32.50213791]
[1642951851977,7.49731175,2434.0,2433.1,31.68315415]
[1642951852174,7.49731175,2434.0,2433.2,3.49746736]
[1642951852375,7.49731175,2434.0,2433.3,3.49649775]
[1642951852574,7.49731175,2434.0,2433.2,0.6]
[1642951852575,0.01731175,2434.0,2433.2,0.6]
[1642951852777,8.09228011,2434.7,2433.2,1.3]
[1642951852978,8.09228011,2434.7,2433.3,4.10245552]
[1642951853175,8.09228011,2434.7,2433.2,1.0]
[1642951853379,8.09228011,2434.7,2433.3,3.49636388]
[1642951853679,8.09228011,2434.7,2433.3,0.3]
[1642951853875,1.44945963,2434.6,2433.3,0.3]
[1642951854080,2.44945963,2434.6,2433.3,0.3]
[1642951854275,2.44945963,2434.6,2433.2,4.2042]
[1642951854476,0.64356653,2434.5,2433.2,4.2042]
[1642951854676,0.64356653,2434.5,2433.3,4.16211268]
[1642951854879,0.64356653,2434.5,2433.4,1.0]
[1642951855078,0.64356653,2434.5,2433.4,1.6]